[Event "2nd Namma Bengaluru Open-A 2025"]
[Site "Bengaluru"]
[Date "2025.04.16"]
[Round "8.21"]
[White "Karthikeyan, P.."]
[Black "Nandish V S"]
[Result "1-0"]
[Annotator "RC"]
[ECO "A22"]
[WhiteElo "2312"]
[BlackElo "2014"]
[PlyCount "83"]
[EventDate "2025.04.10"]
[EventType "swiss"]
[EventCountry "IND"]
[SourceTitle "playchess.com"]
[Source "ChessBase"]
[SourceQuality "1"]
[TimeControl "5400+30"]

1. d4 {[%emt 0:01:51]} Nf6 {[%emt 0:00:09]} 2. c4 {[%emt 0:00:13]} e6 {[%emt 0:00:05]} 3. Nc3 {[%emt 0:00:29]} Bb4 {[%emt 0:00:06]} 4. g3 {[%emt 0:00:17]} O-O {[%emt 0:00:57]} 5. Bg2 {[%emt 0:00:07]} Bxc3+ {[%emt 0:04:26]} 6. bxc3 {[%emt 0:00:05]} d6 {[%emt 0:00:10]} 7. Nf3 {[%emt 0:00:24]} Nbd7 {[%emt 0:05:24]} 8. O-O {[%emt 0:00:35]} e5 {[%emt 0:01:43]} 9. c5 {[%emt 0:07:05]} Re8 {[%emt 0:26:26]} 10. cxd6 {[%emt 0:03:32]} cxd6 {[%emt 0:06:48]} 11. a4 {[%emt 0:00:04]} Qc7 {[%emt 0:10:13]} 12. Ba3 {[%emt 0:12:40]} e4 {[%emt 0:04:33]} 13. Nd2 {[%emt 0:00:02]} Qxc3 {[%emt 0:07:17]} 14. e3 {[%emt 0:04:57]} d5 {[%emt 0:02:01]} 15. Qe2 {[%emt 0:00:02]} Qc6 {[%emt 0:06:54]} 16. Rfc1 {[%emt 0:06:44]} Qe6 {[%emt 0:01:25]} 17. a5 {[%emt 0:00:12]} b6 {[%emt 0:02:09]} 18. Nb3 {[%emt 0:07:20]} Nb8 {[%emt 0:01:42]} 19. axb6 {[%emt 0:08:24]} axb6 {[%emt 0:00:06]} 20. Bb4 {[%emt 0:00:04]} Ba6 {[%emt 0:00:55]} 21. Qb2 {[%emt 0:00:03]} Nc6 {[%emt 0:01:23]} 22. Be1 {[%emt 0:01:45]} h6 {[%emt 0:02:34]} 23. Ra3 {[%emt 0:05:25]} Bc4 {[%emt 0:01:30]} 24. Rca1 {[%emt 0:00:55]} Rxa3 {[%emt 0:01:26]} 25. Rxa3 Rb8 26. h3 {[%emt 0:04:37]} Qc8 {[%emt 0:05:33]} 27. Qa1 {[%emt 0:02:03]} b5 {[%emt 0:00:53]} 28. Qb2 {[%emt 0:01:30]} b4 {[%emt 0:02:37]} 29. Ra1 {[%emt 0:00:06]} Ra8 {[%emt 0:00:24]} 30. Rb1 {[%emt 0:01:39]} Nd7 {[%emt 0:01:09]} 31. Qc1 {[%emt 0:05:02]} Qb7 {[%emt 0:01:55]} 32. f3 {[%emt 0:05:13]} f5 {[%emt 0:01:36]} 33. g4 {[%emt 0:00:27]} Ra3 {[%emt 0:01:43]} 34. Nd2 {[%emt 0:02:59]} Rc3 {[%emt 0:00:34]} 35. Qxc3 {[%emt 0:03:58]} bxc3 {[%emt 0:00:01]} 36. Rxb7 {[%emt 0:00:02]} cxd2 {[%emt 0:01:07]} 37. Bxd2 {[%emt 0:00:15]} Nf6 {[%emt 0:00:33]} 38. gxf5 {[%emt 0:00:49]} exf3 {[%emt 0:00:28]} 39. Bxf3 {[%emt 0:00:02]} Kh7 {[%emt 0:00:18]} 40. Rc7 {[%emt 0:01:34]} Nd8 {[%emt 0:00:21]} 41. Be1 {[%emt 0:02:50]} Bd3 {[%emt 0:00:08]} 42. Bh4 {[%emt 0:00:10]} 1-0

[Event "2nd Namma Bengaluru Open-A 2025"]
[Site "Bengaluru"]
[Date "2025.04.16"]
[Round "8.22"]
[White "Sharnarthi Viresh"]
[Black "Ayush Sharma"]
[Result "0-1"]
[Annotator "RC"]
[ECO "E10"]
[WhiteElo "2232"]
[BlackElo "2485"]
[PlyCount "120"]
[EventDate "2025.04.10"]
[EventType "swiss"]
[EventCountry "IND"]
[SourceTitle "playchess.com"]
[Source "ChessBase"]
[SourceQuality "1"]
[TimeControl "5400+30"]

1. d4 {[%emt 0:00:02]} Nf6 {[%emt 0:00:11]} 2. c4 {[%emt 0:00:09]} e6 {[%emt 0:00:04]} 3. Nf3 {[%emt 0:00:07]} a6 {[%emt 0:00:44]} 4. g3 {[%emt 0:02:53]} b5 {[%emt 0:00:06]} 5. Bg2 {[%emt 0:08:57]} Bb7 {[%emt 0:07:49]} 6. c5 {[%emt 0:00:47]} d6 {[%emt 0:02:01]} 7. cxd6 {[%emt 0:00:23]} Bxd6 {[%emt 0:03:44]} 8. O-O {[%emt 0:02:00]} O-O {[%emt 0:00:06]} 9. b3 {[%emt 0:01:40]} Nbd7 {[%emt 0:04:30]} 10. Bb2 {[%emt 0:00:49]} Rc8 {[%emt 0:03:52]} 11. Nbd2 {[%emt 0:06:51]} c5 {[%emt 0:02:33]} 12. Rc1 {[%emt 0:00:18]} Qe7 {[%emt 0:02:06]} 13. Ne5 {[%emt 0:01:54]} Bxg2 {[%emt 0:00:51]} 14. Kxg2 {[%emt 0:00:10]} Rfd8 {[%emt 0:16:37]} 15. e3 {[%emt 0:02:04]} cxd4 {[%emt 0:14:47]} 16. exd4 {[%emt 0:02:29]} Rxc1 {[%emt 0:05:49]} 17. Qxc1 {[%emt 0:00:09]} Qe8 {[%emt 0:02:02]} 18. Ndf3 {[%emt 0:20:03]} Rc8 {[%emt 0:01:28]} 19. Qb1 {[%emt 0:00:19]} h6 {[%emt 0:04:08]} 20. Rc1 {[%emt 0:06:12]} Nd5 {[%emt 0:03:15]} 21. Nd3 {[%emt 0:03:48]} Rxc1 {[%emt 0:01:40]} 22. Qxc1 {[%emt 0:00:11]} Qa8 {[%emt 0:00:11]} 23. Qd1 {[%emt 0:02:12]} Nb4 {[%emt 0:03:30]} 24. Ba3 {[%emt 0:03:13]} Nxd3 {[%emt 0:01:14]} 25. Bxd6 {[%emt 0:00:03]} Qe4 {[%emt 0:00:20]} 26. Kf1 {[%emt 0:02:10]} Nf6 {[%emt 0:02:31]} 27. Qe2 Nc1 {[%emt 0:02:43]} 28. Qxe4 {[%emt 0:05:50]} Nxe4 {[%emt 0:00:04]} 29. Ba3 {[%emt 0:03:41]} Nxa2 {[%emt 0:00:59]} 30. Ke2 {[%emt 0:00:21]} Nec3+ {[%emt 0:02:11]} 31. Kd3 {[%emt 0:02:09]} Nd5 {[%emt 0:00:59]} 32. Bd6 {[%emt 0:07:46]} f6 {[%emt 0:01:44]} 33. g4 {[%emt 0:04:55]} Kf7 {[%emt 0:01:04]} 34. h4 {[%emt 0:00:27]} g6 {[%emt 0:01:59]} 35. g5 {[%emt 0:01:50]} Nab4+ {[%emt 0:00:12]} 36. Kd2 {[%emt 0:01:40]} fxg5 {[%emt 0:00:50]} 37. hxg5 {[%emt 0:00:50]} h5 {[%emt 0:00:05]} 38. Ne5+ {[%emt 0:01:06]} Kg7 {[%emt 0:00:08]} 39. Nd7 {[%emt 0:03:48]} Nc6 {[%emt 0:01:39]} 40. Nc5 {[%emt 0:00:40]} Kf7 {[%emt 0:00:08]} 41. Nxa6 {[%emt 0:01:42]} Nxd4 {[%emt 0:00:04]} 42. b4 {[%emt 0:00:20]} Nf3+ {[%emt 0:00:41]} 43. Kd3 {[%emt 0:00:02]} h4 {[%emt 0:01:50]} 44. Ke2 {[%emt 0:02:49]} Nxg5 {[%emt 0:00:40]} 45. Nc5 {[%emt 0:00:10]} Kf6 {[%emt 0:02:50]} 46. f4 {[%emt 0:01:22]} Nf7 {[%emt 0:00:06]} 47. Ne4+ {[%emt 0:00:11]} Kf5 {[%emt 0:00:12]} 48. Kf3 {[%emt 0:00:04]} g5 {[%emt 0:00:41]} 49. fxg5 {[%emt 0:00:30]} Nxg5+ {[%emt 0:00:04]} 50. Nxg5 {[%emt 0:00:09]} Kxg5 {[%emt 0:00:03]} 51. Ke4 {[%emt 0:00:15]} Kg4 {[%emt 0:00:47]} 52. Kd4 {[%emt 0:01:12]} h3 {[%emt 0:00:04]} 53. Bh2 {[%emt 0:00:05]} Nxb4 {[%emt 0:00:11]} 54. Kc5 {[%emt 0:00:04]} Nd3+ {[%emt 0:00:20]} 55. Kxb5 {[%emt 0:00:06]} Ne1 {[%emt 0:00:09]} 56. Kc5 {[%emt 0:00:31]} Nf3 {[%emt 0:00:04]} 57. Kd6 {[%emt 0:00:18]} Nxh2 {[%emt 0:00:05]} 58. Kxe6 {[%emt 0:00:03]} Nf3 {[%emt 0:00:06]} 59. Kf7 {[%emt 0:00:13]} h2 {[%emt 0:00:05]} 60. Kg7 {[%emt 0:00:13]} h1=Q {[%emt 0:00:14]} 0-1

[Event "2nd Namma Bengaluru Open-A 2025"]
[Site "Bengaluru"]
[Date "2025.04.16"]
[Round "8.23"]
[White "Neelash Saha"]
[Black "Mehta Naitik R"]
[Result "0-1"]
[Annotator "RC"]
[ECO "E46"]
[WhiteElo "2460"]
[BlackElo "2227"]
[PlyCount "98"]
[EventDate "2025.04.10"]
[EventType "swiss"]
[EventCountry "IND"]
[SourceTitle "playchess.com"]
[Source "ChessBase"]
[SourceQuality "1"]
[TimeControl "5400+30"]

1. d4 {[%emt 0:00:04]} Nf6 {[%emt 1:31:00]} 2. c4 {[%emt 0:00:09]} e6 {[%emt 0:00:00]} 3. Nc3 {[%emt 0:01:11]} Bb4 {[%emt 0:00:00]} 4. e3 {[%emt 0:03:09]} O-O {[%emt 0:00:00]} 5. Nge2 {[%emt 0:01:55]} Re8 {[%emt 0:00:00]} 6. a3 {[%emt 0:01:43]} Bf8 {[%emt 0:00:00]} 7. Ng3 {[%emt 0:00:25]} d5 {[%emt 0:00:00]} 8. Be2 {[%emt 0:03:03]} b6 {[%emt 0:00:00]} 9. O-O {[%emt 0:01:10]} Bb7 {[%emt 0:00:00]} 10. Qc2 {[%emt 0:00:37]} c5 {[%emt 0:00:00]} 11. dxc5 {[%emt 0:00:23]} bxc5 {[%emt 0:00:00]} 12. cxd5 {[%emt 0:00:32]} exd5 {[%emt 0:00:00]} 13. Rd1 {[%emt 0:04:02]} Nbd7 {[%emt 0:00:00]} 14. b3 {[%emt 0:03:21]} Rc8 {[%emt 0:00:00]} 15. Bb2 {[%emt 0:02:39]} d4 {[%emt 0:00:00]} 16. Na4 {[%emt 0:16:58]} dxe3 {[%emt 0:00:00]} 17. fxe3 {[%emt 0:01:47]} Rxe3 {[%emt 0:00:00]} 18. Bc4 {[%emt 0:00:20]} Qc7 {[%emt 0:00:00]} 19. Qf2 {[%emt 0:01:22]} Rce8 {[%emt 0:00:00]} 20. Bc1 {[%emt 0:19:02]} R3e7 {[%emt 0:00:00]} 21. Bf4 {[%emt 0:00:08]} Qc6 {[%emt 0:00:00]} 22. Nc3 {[%emt 0:00:03]} Ng4 {[%emt 0:00:00]} 23. Qf1 {[%emt 0:00:21]} Qf6 {[%emt 0:00:00]} 24. h3 {[%emt 0:07:24]} Nge5 {[%emt 0:00:00]} 25. Nd5 {[%emt 0:01:52]} Bxd5 {[%emt 0:00:00]} 26. Bxd5 {[%emt 0:00:04]} Nb6 {[%emt 0:00:00]} 27. Ne4 {[%emt 0:09:21]} Qg6 {[%emt 0:00:00]} 28. Nxc5 {[%emt 0:12:52]} Rc7 {[%emt 0:00:38]} 29. b4 {[%emt 0:00:51]} Bxc5+ {[%emt 0:01:29]} 30. bxc5 {[%emt 0:00:04]} Rxc5 {[%emt 0:00:02]} 31. Ba2 {[%emt 0:00:07]} h6 {[%emt 0:04:04]} 32. Rd2 {[%emt 0:02:29]} Ned7 {[%emt 0:05:28]} 33. Rad1 {[%emt 0:00:28]} Nf6 {[%emt 0:00:13]} 34. Bb1 {[%emt 0:01:12]} Qh5 {[%emt 0:00:14]} 35. g4 {[%emt 0:02:49]} Qh4 {[%emt 0:00:05]} 36. Rd3 {[%emt 0:00:26]} Nbd5 {[%emt 0:01:27]} 37. Bd6 {[%emt 0:01:53]} Rc3 {[%emt 0:00:04]} 38. Bg3 {[%emt 0:00:37]} Qg5 {[%emt 0:00:12]} 39. Qf3 {[%emt 0:01:49]} Rxd3 {[%emt 0:00:17]} 40. Rxd3 {[%emt 0:00:06]} h5 {[%emt 0:02:03]} 41. Ba2 {[%emt 0:00:59]} hxg4 {[%emt 0:00:49]} 42. hxg4 {[%emt 0:00:05]} Ne3 {[%emt 0:01:06]} 43. Rd7 {[%emt 0:01:12]} Nc4 {[%emt 0:02:03]} 44. Rd1 {[%emt 0:00:48]} Nxg4 {[%emt 0:00:31]} 45. Bxc4 {[%emt 0:00:28]} Qc5+ {[%emt 0:00:32]} 46. Bf2 {[%emt 0:00:04]} Qxc4 {[%emt 0:00:02]} 47. Rd4 {[%emt 0:00:07]} Qc1+ {[%emt 0:00:02]} 48. Rd1 {[%emt 0:00:06]} Qg5 {[%emt 0:00:02]} 49. Qg3 {[%emt 0:01:26]} Nxf2 {[%emt 0:02:37]} 0-1

[Event "2nd Namma Bengaluru Open-A 2025"]
[Site "Bengaluru"]
[Date "2025.04.16"]
[Round "8.24"]
[White "Aarav A"]
[Black "Savchenko, Boris"]
[Result "0-1"]
[Annotator "RC"]
[ECO "B22"]
[WhiteElo "2243"]
[BlackElo "2459"]
[PlyCount "88"]
[EventDate "2025.04.10"]
[EventType "swiss"]
[EventCountry "IND"]
[SourceTitle "playchess.com"]
[Source "ChessBase"]
[SourceQuality "1"]
[TimeControl "5400+30"]

1. e4 {[%emt 0:00:04]} c5 {[%emt 0:04:30]} 2. c3 {[%emt 0:00:12]} Nf6 {[%emt 0:00:06]} 3. e5 {[%emt 0:00:12]} Nd5 {[%emt 0:00:05]} 4. Nf3 {[%emt 0:00:09]} Nc6 {[%emt 0:00:31]} 5. Bc4 {[%emt 0:00:11]} Nb6 {[%emt 0:00:07]} 6. Bb3 {[%emt 0:00:12]} c4 {[%emt 0:00:06]} 7. Bc2 {[%emt 0:00:13]} d5 {[%emt 0:00:04]} 8. exd6 {[%emt 0:00:13]} Qxd6 {[%emt 0:00:05]} 9. O-O {[%emt 0:00:22]} Bg4 {[%emt 0:00:11]} 10. Re1 {[%emt 0:00:23]} Bh5 {[%emt 0:04:05]} 11. b3 {[%emt 0:16:43]} e6 {[%emt 0:00:34]} 12. Qe2 {[%emt 0:01:14]} cxb3 {[%emt 0:01:04]} 13. axb3 {[%emt 0:00:39]} Qc7 {[%emt 0:01:22]} 14. h3 {[%emt 0:22:29]} Be7 {[%emt 0:02:40]} 15. Na3 {[%emt 0:02:46]} O-O {[%emt 0:00:39]} 16. d4 {[%emt 0:01:17]} Nd5 {[%emt 0:06:36]} 17. Bd2 {[%emt 0:02:19]} Bxa3 {[%emt 0:08:00]} 18. Rxa3 {[%emt 0:02:00]} Nxd4 {[%emt 0:00:53]} 19. Bxh7+ {[%emt 0:03:43]} Kxh7 {[%emt 0:00:18]} 20. Ng5+ {[%emt 0:01:06]} Kg8 {[%emt 0:01:17]} 21. Qxh5 {[%emt 0:00:13]} Nf6 {[%emt 0:00:03]} 22. Qd1 {[%emt 0:00:23]} Nb5 {[%emt 0:01:24]} 23. Ra1 {[%emt 0:03:38]} Rfd8 {[%emt 0:00:19]} 24. c4 {[%emt 0:11:24]} Nd4 {[%emt 0:00:54]} 25. Bc3 {[%emt 0:00:19]} Qf4 {[%emt 0:03:27]} 26. Nf3 {[%emt 0:00:45]} Nxf3+ {[%emt 0:00:44]} 27. Qxf3 {[%emt 0:00:20]} Qxf3 {[%emt 0:00:03]} 28. gxf3 {[%emt 0:00:01]} Ne8 {[%emt 0:02:32]} 29. Red1 {[%emt 0:00:31]} a6 {[%emt 0:00:31]} 30. Ba5 {[%emt 0:00:17]} Rdc8 {[%emt 0:00:25]} 31. Bb6 {[%emt 0:10:33]} Rc6 {[%emt 0:00:26]} 32. Be3 {[%emt 0:00:09]} Rac8 {[%emt 0:02:00]} 33. Rd7 {[%emt 0:02:50]} R6c7 {[%emt 1:00:59]} 34. Rad1 {[%emt 0:01:37]} Nf6 {[%emt 0:00:00]} 35. R7d6 {[%emt 0:00:54]} b5 {[%emt 0:00:00]} 36. cxb5 {[%emt 0:05:39]} axb5 {[%emt 0:00:00]} 37. Rb6 {[%emt 0:00:27]} Nd5 {[%emt 0:00:00]} 38. Rxb5 {[%emt 0:00:08]} Nc3 {[%emt 0:00:00]} 39. Bf4 {[%emt 0:04:11]} Ne2+ {[%emt 0:00:00]} 40. Kh2 {[%emt 0:00:26]} Nxf4 {[%emt 0:00:00]} 41. Rg5 {[%emt 0:00:32]} Rc2 {[%emt 0:00:00]} 42. Kg3 {[%emt 0:00:27]} f6 {[%emt 0:00:00]} 43. Rb5 {[%emt 0:00:57]} Ne2+ {[%emt 0:00:00]} 44. Kh4 {[%emt 0:01:35]} Nc3 {[%emt 0:00:00]} 0-1

[Event "2nd Namma Bengaluru Open-A 2025"]
[Site "Bengaluru"]
[Date "2025.04.16"]
[Round "8.25"]
[White "Kaustuv, Kundu"]
[Black "Aarav Sinha"]
[Result "0-1"]
[Annotator "RC"]
[ECO "E18"]
[WhiteElo "2407"]
[BlackElo "2187"]
[PlyCount "118"]
[EventDate "2025.04.10"]
[EventType "swiss"]
[EventCountry "IND"]
[SourceTitle "playchess.com"]
[Source "ChessBase"]
[SourceQuality "1"]
[TimeControl "5400+30"]

1. c4 {[%emt 0:04:33]} e6 {[%emt 0:01:38]} 2. g3 {[%emt 0:00:07]} d5 {[%emt 0:00:05]} 3. Bg2 {[%emt 0:00:04]} Nf6 {[%emt 0:00:04]} 4. Nf3 {[%emt 0:00:05]} Be7 {[%emt 0:00:05]} 5. O-O {[%emt 0:00:06]} O-O {[%emt 0:00:03]} 6. b3 {[%emt 0:00:07]} b6 {[%emt 0:00:07]} 7. Nc3 {[%emt 0:00:15]} Bb7 {[%emt 0:01:48]} 8. d4 {[%emt 0:00:07]} c5 {[%emt 0:03:47]} 9. dxc5 {[%emt 0:00:51]} Bxc5 {[%emt 0:02:47]} 10. cxd5 {[%emt 0:00:45]} Nxd5 {[%emt 0:01:09]} 11. Bb2 {[%emt 0:04:58]} Nd7 {[%emt 0:04:14]} 12. Ne4 {[%emt 0:01:32]} Be7 {[%emt 0:04:09]} 13. Qd4 {[%emt 0:00:15]} N5f6 {[%emt 0:04:24]} 14. Ne5 {[%emt 0:01:36]} Nxe5 {[%emt 0:09:55]} 15. Qxe5 {[%emt 0:02:40]} Bxe4 {[%emt 0:06:02]} 16. Bxe4 {[%emt 0:00:30]} Bd6 {[%emt 0:00:02]} 17. Qd4 {[%emt 0:06:34]} Bc5 {[%emt 0:02:20]} 18. Qxd8 {[%emt 0:04:51]} Raxd8 {[%emt 0:00:25]} 19. Bf3 {[%emt 0:00:23]} Bd4 {[%emt 0:04:10]} 20. Rab1 {[%emt 0:00:42]} Bxb2 {[%emt 0:00:21]} 21. Rxb2 {[%emt 0:00:03]} Rc8 {[%emt 0:00:46]} 22. Rd1 {[%emt 0:00:40]} Rfe8 {[%emt 0:00:06]} 23. Rbd2 {[%emt 0:00:51]} Kf8 {[%emt 0:00:07]} 24. Bb7 {[%emt 0:07:04]} Rb8 {[%emt 0:01:28]} 25. Ba6 {[%emt 0:01:42]} Nd5 {[%emt 0:07:17]} 26. Rc1 {[%emt 0:05:19]} Nb4 {[%emt 0:03:55]} 27. Bb5 {[%emt 0:00:07]} Rec8 {[%emt 0:00:07]} 28. Rcd1 {[%emt 0:06:23]} Nd5 {[%emt 0:04:50]} 29. Ba6 {[%emt 0:05:04]} Rc7 {[%emt 0:01:19]} 30. e4 {[%emt 0:06:02]} Nc3 {[%emt 0:05:12]} 31. Rc2 {[%emt 0:07:08]} b5 {[%emt 0:03:32]} 32. Rdc1 {[%emt 0:02:05]} Ne2+ {[%emt 0:02:11]} 33. Kg2 {[%emt 0:00:20]} Nxc1 {[%emt 0:00:10]} 34. Rxc7 {[%emt 0:00:07]} Nxa2 {[%emt 0:00:09]} 35. Rxa7 {[%emt 0:00:11]} Nc1 {[%emt 0:00:50]} 36. Rc7 {[%emt 0:03:20]} Nxb3 {[%emt 0:00:20]} 37. f4 {[%emt 0:00:15]} Nd2 {[%emt 0:03:03]} 38. e5 {[%emt 0:01:32]} b4 {[%emt 0:00:41]} 39. f5 {[%emt 0:11:38]} exf5 {[%emt 0:00:53]} 40. Rd7 {[%emt 0:00:15]} Ne4 {[%emt 0:01:19]} 41. Bc4 {[%emt 0:00:05]} Ng5 {[%emt 0:00:04]} 42. Bb3 {[%emt 0:00:08]} Ne6 {[%emt 0:00:35]} 43. Rd5 {[%emt 0:00:05]} Ke7 {[%emt 0:01:10]} 44. Kf2 {[%emt 0:00:18]} Rd8 {[%emt 0:01:51]} 45. Rb5 {[%emt 0:00:22]} Nd4 {[%emt 0:04:21]} 46. Rxb4 {[%emt 0:00:07]} Nxb3 {[%emt 0:00:08]} 47. Rxb3 {[%emt 0:00:06]} Rd2+ {[%emt 0:00:03]} 48. Kg1 {[%emt 0:00:19]} Re2 {[%emt 0:00:11]} 49. h4 {[%emt 0:00:21]} Rxe5 {[%emt 0:01:13]} 50. Kf2 {[%emt 0:00:07]} Rd5 {[%emt 0:00:27]} 51. Kf3 {[%emt 0:00:19]} g6 {[%emt 0:00:56]} 52. Rb8 {[%emt 0:00:17]} Kf6 {[%emt 0:00:08]} 53. Rh8 {[%emt 0:00:10]} Kg7 {[%emt 0:00:05]} 54. Rb8 {[%emt 0:00:04]} h6 {[%emt 0:00:22]} 55. Rb6 {[%emt 0:00:21]} g5 {[%emt 0:00:22]} 56. hxg5 {[%emt 0:00:07]} hxg5 {[%emt 0:00:02]} 57. Ra6 {[%emt 0:00:11]} Rd3+ {[%emt 0:00:08]} 58. Kf2 {[%emt 0:00:06]} Rb3 {[%emt 0:00:50]} 59. Kg2 {[%emt 0:00:36]} Rb4 {[%emt 0:00:06]} 0-1

[Event "2nd Namma Bengaluru Open-A 2025"]
[Site "Bengaluru"]
[Date "2025.04.16"]
[Round "8.25"]
[White "Kaustuv, Kundu"]
[Black "Aarav Sinha"]
[Result "*"]
[Annotator "RC"]
[ECO "E18"]
[WhiteElo "2407"]
[BlackElo "2187"]
[PlyCount "38"]
[EventDate "2025.04.10"]
[EventType "swiss"]
[EventCountry "IND"]
[SourceTitle "playchess.com"]
[Source "ChessBase"]
[SourceQuality "1"]
[TimeControl "5400+30"]

1. c4 {[%emt 0:04:33]} e6 {[%emt 0:01:38]} 2. g3 {[%emt 0:00:07]} d5 {[%emt 0:00:05]} 3. Bg2 {[%emt 0:00:04]} Nf6 {[%emt 0:00:04]} 4. Nf3 {[%emt 0:00:05]} Be7 {[%emt 0:00:05]} 5. O-O {[%emt 1:28:11]} O-O {[%emt 0:00:03]} 6. b3 {[%emt 0:00:07]} b6 {[%emt 0:00:07]} 7. Nc3 {[%emt 0:00:15]} Bb7 {[%emt 0:01:48]} 8. d4 {[%emt 0:00:07]} c5 {[%emt 0:03:47]} 9. dxc5 {[%emt 0:00:51]} Bxc5 {[%emt 0:02:47]} 10. cxd5 {[%emt 0:00:45]} Nxd5 {[%emt 0:01:09]} 11. Bb2 {[%emt 0:04:58]} Nd7 {[%emt 0:04:14]} 12. Ne4 {[%emt 0:01:32]} Be7 {[%emt 0:04:09]} 13. Qd4 {[%emt 0:00:15]} N5f6 {[%emt 1:17:04]} 14. Ne5 {[%emt 0:01:36]} Nxe5 {[%emt 0:09:55]} 15. Qxe5 {[%emt 0:02:40]} Bxe4 {[%emt 0:06:02]} 16. Bxe4 {[%emt 0:00:30]} Bd6 {[%emt 0:00:02]} 17. Qd4 {[%emt 0:06:34]} Bc5 {[%emt 0:02:20]} 18. Qd5 {[%emt 1:14:25]} Qd7 19. Qxd7 {[%emt 0:00:00]} Rad8 {[%emt 0:00:55]} *

[Event "2nd Namma Bengaluru Open-A 2025"]
[Site "Bengaluru"]
[Date "2025.04.16"]
[Round "8.26"]
[White "Varun, Vij"]
[Black "Deepan Chakkravarthy J."]
[Result "1/2-1/2"]
[Annotator "RC"]
[ECO "B51"]
[WhiteElo "1978"]
[BlackElo "2394"]
[PlyCount "61"]
[EventDate "2025.04.10"]
[EventType "swiss"]
[EventCountry "IND"]
[SourceTitle "playchess.com"]
[Source "ChessBase"]
[SourceQuality "1"]
[TimeControl "5400+30"]

1. e4 {[%emt 0:00:06]} c5 {[%emt 0:00:08]} 2. Nf3 {[%emt 0:00:29]} d6 {[%emt 0:00:04]} 3. Bb5+ {[%emt 0:00:10]} Nd7 {[%emt 0:00:01]} 4. c3 {[%emt 0:00:27]} a6 {[%emt 0:00:04]} 5. Ba4 {[%emt 0:00:06]} Ngf6 {[%emt 0:01:03]} 6. Qe2 {[%emt 0:01:37]} b5 {[%emt 0:00:16]} 7. Bc2 {[%emt 0:00:07]} e5 {[%emt 0:00:33]} 8. d4 {[%emt 0:00:26]} Be7 {[%emt 0:00:55]} 9. O-O {[%emt 0:01:30]} O-O {[%emt 0:00:16]} 10. Rd1 {[%emt 0:02:25]} Qc7 {[%emt 0:00:29]} 11. a4 {[%emt 0:01:18]} Rb8 {[%emt 0:01:02]} 12. axb5 {[%emt 0:00:51]} axb5 {[%emt 0:00:02]} 13. h3 {[%emt 0:02:39]} Re8 {[%emt 0:00:22]} 14. Be3 {[%emt 0:01:58]} Bf8 {[%emt 0:04:07]} 15. d5 {[%emt 0:01:16]} c4 {[%emt 1:28:38]} 16. Ra7 {[%emt 0:01:32]} Rb7 {[%emt 0:00:00]} 17. Na3 {[%emt 0:00:15]} Qb8 {[%emt 0:00:00]} 18. Ra5 {[%emt 0:14:27]} Nc5 {[%emt 0:00:00]} 19. Bxc5 {[%emt 0:02:20]} dxc5 {[%emt 0:00:00]} 20. Ra1 {[%emt 0:02:47]} Bd7 {[%emt 0:00:00]} 21. Nb1 {[%emt 0:00:56]} Bd6 {[%emt 0:00:00]} 22. Nbd2 {[%emt 0:01:01]} Nh5 {[%emt 0:00:00]} 23. Nf1 {[%emt 0:04:30]} Nf4 {[%emt 0:00:00]} 24. Qd1 {[%emt 0:00:13]} g6 {[%emt 0:00:00]} 25. Ne3 {[%emt 0:01:45]} Kg7 {[%emt 0:00:00]} 26. h4 {[%emt 0:01:49]} Nh5 {[%emt 0:00:00]} 27. Ra6 {[%emt 0:11:33]} Rb6 {[%emt 0:00:00]} 28. Ra7 {[%emt 0:00:48]} Rb7 {[%emt 0:00:00]} 29. R7a6 {[%emt 0:00:06]} Rb6 {[%emt 0:00:00]} 30. Ra7 {[%emt 0:00:05]} Rb7 {[%emt 0:00:00]} 31. R7a6 {[%emt 0:00:04]} 1/2-1/2

[Event "2nd Namma Bengaluru Open-A 2025"]
[Site "Bengaluru"]
[Date "2025.04.16"]
[Round "8.27"]
[White "Arnav Agrawal"]
[Black "Schekachikhin, Maksim"]
[Result "0-1"]
[Annotator "RC"]
[ECO "E32"]
[WhiteElo "2194"]
[BlackElo "2370"]
[PlyCount "74"]
[EventDate "2025.04.10"]
[EventType "swiss"]
[EventCountry "IND"]
[SourceTitle "playchess.com"]
[Source "ChessBase"]
[SourceQuality "1"]
[TimeControl "5400+30"]

1. d4 {[%emt 0:00:09]} Nf6 {[%emt 0:00:14]} 2. c4 {[%emt 0:00:11]} e6 {[%emt 0:00:07]} 3. Nc3 {[%emt 0:00:10]} Bb4 {[%emt 0:00:08]} 4. Qc2 {[%emt 0:00:05]} h6 {[%emt 0:00:24]} 5. Nf3 {[%emt 0:01:32]} c5 {[%emt 0:00:34]} 6. dxc5 {[%emt 0:00:12]} Na6 {[%emt 0:00:19]} 7. g3 {[%emt 0:01:23]} Nxc5 {[%emt 0:00:26]} 8. Bg2 {[%emt 0:00:07]} Nce4 {[%emt 0:00:35]} 9. O-O {[%emt 0:01:28]} Bxc3 {[%emt 0:00:36]} 10. bxc3 {[%emt 0:00:08]} O-O {[%emt 0:00:08]} 11. Nd4 {[%emt 0:02:03]} d5 {[%emt 0:04:10]} 12. cxd5 {[%emt 0:17:02]} exd5 {[%emt 0:00:23]} 13. c4 {[%emt 0:10:10]} dxc4 {[%emt 0:07:22]} 14. Rd1 {[%emt 0:07:50]} Re8 {[%emt 0:04:25]} 15. Bf4 {[%emt 0:02:32]} Qd5 {[%emt 0:16:28]} 16. Rab1 {[%emt 0:12:29]} Qh5 {[%emt 0:04:27]} 17. Rb5 {[%emt 0:06:31]} g5 {[%emt 0:12:46]} 18. f3 {[%emt 0:03:52]} a6 {[%emt 0:04:43]} 19. Re5 {[%emt 0:01:47]} Bh3 {[%emt 0:10:07]} 20. Qxc4 {[%emt 0:16:16]} Bxg2 {[%emt 0:07:44]} 21. Kxg2 {[%emt 0:00:14]} Nf2 {[%emt 0:04:42]} 22. Rf1 {[%emt 0:12:37]} Qh3+ {[%emt 0:07:08]} 23. Kg1 {[%emt 0:00:34]} gxf4 {[%emt 0:03:31]} 24. Rxe8+ {[%emt 0:00:17]} Rxe8 {[%emt 0:00:06]} 25. Rxf2 {[%emt 0:00:03]} Rc8 {[%emt 0:00:15]} 26. Nc6 {[%emt 0:02:49]} Rxc6 {[%emt 0:00:12]} 27. Qxf4 {[%emt 0:00:03]} Nd5 {[%emt 0:01:40]} 28. Qd2 {[%emt 0:00:34]} Qe6 {[%emt 0:00:31]} 29. e4 {[%emt 0:00:05]} Ne7 {[%emt 0:00:06]} 30. Qd8+ {[%emt 0:00:36]} Kg7 {[%emt 0:00:15]} 31. Rd2 {[%emt 0:00:42]} Ng6 {[%emt 0:00:42]} 32. Kg2 {[%emt 0:00:44]} b5 {[%emt 0:00:49]} 33. h4 {[%emt 0:00:54]} Qf6 {[%emt 0:01:20]} 34. Qb8 {[%emt 0:00:38]} Rc3 {[%emt 0:00:49]} 35. f4 {[%emt 0:00:40]} Qe6 {[%emt 0:00:36]} 36. h5 {[%emt 0:00:23]} Nh4+ {[%emt 0:00:56]} 37. Kf2 {[%emt 0:00:39]} Rf3+ {[%emt 0:00:28]} 0-1